[Event "Azerbaijan Men Championship 2024"]
[Site "Baku"]
[Date "2024.04.17"]
[Round "7.4"]
[White "Samadov, Read"]
[Black "Manafov, Vugar"]
[Result "1/2-1/2"]
[ECO "A11"]
[WhiteElo "2502"]
[BlackElo "2424"]
[Annotator "TA"]
[PlyCount "69"]
[EventDate "2024.04.11"]
[EventType "swiss"]
[EventCountry "AZE"]
[SourceTitle "playchess.com"]
[Source "ChessBase"]
[SourceQuality "1"]
[TimeControl "40/5400+30:1800+30"]

{[%evp 9,69,0,47,2,-8,-14,8,11,24,26,26,31,35,3,4,0,32,17,48,30,42,41,59,28,17,23,41,37,47,20,23,30,40,-30,-33,-22,-47,-52,-22,-34,-26,-70,0,0,16,0,0,0,0,0,0,0,0,0,0,0,0,0,3,0,0,0]} 1. Nf3 {[%emt 0:00:04]} Nf6 {[%emt 0:00:16]} 2. g3 {[%emt 0:00:08]} d5 {[%emt 0:00:19]} 3. Bg2 {[%emt 0:00:16]} c6 {[%emt 0:00:37]} 4. c4 {[%emt 0:00:46]} dxc4 {[%emt 0:02:24]} 5. O-O {[%emt 0:00:52]} g6 {[%emt 0:08:13]} (5... e6 $11) 6. a4 {[%emt 0:14:37]} Bg7 {[%emt 0:03:45]} 7. Na3 {[%emt 0:02:07]} O-O {[%emt 0:02:18]} 8. Nxc4 {[%emt 0:00:50]} Be6 {[%emt 0:07:08]} 9. b3 {[%emt 0:05:20]} a5 {[%emt 0:01:57]} 10. Bb2 {[%emt 0:02:15][%cal Bc1b2,Bb2e5,Be5f4,Bf4e3][%mdl 32]} Na6 {[%emt 0:00:54]} 11. Rc1 {[%emt 0:03:54]} Nb4 {[%emt 0:02:16]} 12. d3 {[%emt 0:08:44]} h6 {[%emt 0:06:12]} 13. Be5 {[%emt 0:08:48]} Ra6 {[%emt 0:04:44]} (13... Bd5 {is more complex.} 14. Qd2 Nd7 15. Bxg7 Kxg7 16. e4 Bxc4 17. Rxc4 e6) 14. Rb1 {[%emt 0:03:42]} Bxc4 {[%emt 0:16:12]} 15. bxc4 {[%emt 0:01:17]} (15. dxc4 $5 Ng4 16. Bxg7 Kxg7 17. e4 $11) 15... Nd7 {[%emt 0:00:52]} 16. Bf4 {[%emt 0:02:45]} e5 {[%emt 0:01:49]} 17. Be3 {[%emt 0:05:52]} Qe7 {[%emt 0:08:43]} 18. Qc1 {[%emt 0:04:02]} Kh7 {[%emt 0:02:51]} 19. Ne1 {[%emt 0:03:19]} Nc5 {[%emt 0:01:14]} 20. Nc2 {[%emt 0:04:15]} Ne6 {[%emt 0:05:50]} 21. Nxb4 {[%emt 0:07:10]} ({White should play} 21. Bd2 $14) 21... axb4 $11 {[%emt 0:00:05]} 22. c5 $1 {[%emt 0:00:15]} Rxa4 {[%emt 0:01:19]} 23. Qc4 {[%emt 0:01:04][%cal Oh2h4]} Nd4 {[%emt 0:00:26]} 24. Bxd4 {[%emt 0:01:30]} (24. Rxb4 $2 {perishes.} b5 (24... Nxe2+ 25. Kh1 $17) 25. cxb6 Rxb4 $19) 24... exd4 {[%emt 0:00:05]} 25. Rxb4 {[%emt 0:02:43]} Rxb4 {[%emt 0:06:30]} (25... b5 $15 26. Qb3 Ra6) 26. Qxb4 {[%emt 0:00:02] The position is equal.} Rd8 {[%emt 0:00:23]} 27. Bf3 {[%emt 0:01:23]} Bf8 {[%emt 0:01:19]} 28. Rc1 {[%emt 0:01:04]} Rd7 {[%emt 0:00:42]} 29. h4 {[%emt 0:01:58]} h5 {[%emt 0:00:24]} 30. Kg2 {[%emt 0:00:43]} Qe5 {[%emt 0:00:15]} 31. Qa5 {[%emt 0:01:08]} Qc7 {[%emt 0:01:24]} 32. Qa4 {[%emt 0:01:17]} Qe5 {[%emt 0:00:26]} 33. Qa5 {[%emt 0:00:45]} Qc7 {[%emt 0:00:06]} 34. Qa4 {[%emt 0:00:26]} Qe5 {[%emt 0:00:08]} 35. Qa5 {[%emt 0:00:58] Weighted Error Value: White=0.13 (very precise) /Black=0.13 (very precise) .  Mistake:       	White=1     	Black=1      Inaccurate:     	White=4     	Black=3      OK:         	White=9     	Black=10     Strong:       	White=1     	---} 1/2-1/2

[Event "Azerbaijan Men Championship 2024"]
[Site "Baku"]
[Date "2024.04.17"]
[Round "7.5"]
[White "Hasanzade, Toghrul"]
[Black "Guliyev, Namig"]
[Result "1-0"]
[ECO "B90"]
[WhiteElo "2350"]
[BlackElo "2509"]
[Annotator "TA"]
[PlyCount "67"]
[EventDate "2024.04.11"]
[EventType "swiss"]
[EventCountry "AZE"]
[SourceTitle "playchess.com"]
[Source "ChessBase"]
[SourceQuality "1"]
[TimeControl "40/5400+30:1800+30"]

{[%evp 10,67,27,-8,-13,-2,0,0,0,-12,-8,-76,-80,-71,-76,-100,0,0,0,0,27,0,13,18,30,32,47,49,65,57,89,90,173,94,185,182,179,195,232,214,236,218,513,504,766,285,269,287,263,256,604,593,29960,29962,29973,29975,12844,6491,2643,2165]} 1. e4 {[%emt 0:00:04]} c5 {[%emt 0:01:05]} 2. Nf3 {[%emt 0:00:07]} d6 {[%emt 0:00:05]} 3. d4 {[%emt 0:00:05]} cxd4 {[%emt 0:00:04]} 4. Nxd4 {[%emt 0:00:05]} Nf6 {[%emt 0:00:06]} 5. Nc3 {[%emt 0:00:05]} a6 {[%emt 0:00:33]} 6. Nf3 {[%emt 0:00:25]} Nbd7 {[%emt 0:01:40]} 7. a4 {[%emt 0:00:19]} b6 {[%emt 0:00:58]} 8. Bc4 {[%emt 0:00:22]} e6 {[%emt 0:00:47] The position is equal.} 9. Nd4 {[%emt 0:03:09]} Bb7 {[%emt 0:02:39]} 10. Bxe6 {[%emt 0:03:28]} fxe6 $17 {[%emt 0:01:10]} 11. Nxe6 {[%emt 0:00:15]} Qc8 {[%emt 0:02:25]} 12. Nxf8 {[%emt 0:00:31]} Rxf8 {[%emt 0:02:45]} (12... Nxf8 $17 13. Qxd6 Nxe4 14. Nxe4 (14. Qxb6 $2 {too greedy.} Nxc3 15. Qd4 Qe6+ 16. Be3 Nd5 $19) 14... Bxe4) 13. Qxd6 $11 {[%emt 0:00:16]} Qc4 {[%emt 0:03:17] Prevents Qe6+} (13... Nxe4 $2 {is the wrong capture.} 14. Qe6+ Kd8 15. Nxe4 $18) 14. f3 {[%emt 0:11:41]} Kf7 {[%emt 0:08:43]} (14... Rc8 $5) 15. Be3 {[%emt 0:04:15][%cal Oe1c1][%mdl 1024] White has compensation.} Rfe8 {[%emt 0:04:42]} 16. O-O-O {[%emt 0:03:47][%cal Og2g4]} Re6 {[%emt 0:01:20]} 17. Qa3 {[%emt 0:05:53]} b5 {[%emt 0:08:10]} 18. Rd4 {[%emt 0:03:45]} Qc6 {[%emt 0:00:26]} 19. Rhd1 {[%emt 0:09:20]} Ne5 {[%emt 0:00:36] ...Nc4 is the strong threat. Black is now going downhill.} 20. Bf4 {[%emt 0:08:12]} Ng6 {[%emt 0:08:44]} (20... Nc4 $16 21. Qb4 Kg8) 21. Bg5 {[%emt 0:06:29]} (21. Bd6 $1 $18) 21... h6 {[%emt 0:04:16]} (21... Kg8 $16) 22. Bxf6 $18 {[%emt 0:00:36]} gxf6 {[%emt 0:00:10]} 23. Qb3 {[%emt 0:11:02]} Bc8 {[%emt 0:03:56] [#] Dodges Rd7+} 24. Nd5 $1 {[%emt 0:04:56][%cal Bc3d5,Bd5e7,Be7f5,Bf5d6][%mdl 32] Threatens to win with f4.} ({Less strong is} 24. axb5 axb5 25. Nxb5 Kg7 $14) 24... bxa4 {[%emt 0:11:15]} 25. Rxa4 {[%emt 0:01:46] aiming for Rc4.} Kg7 $2 {[%emt 0:07:03]} (25... Ne7 {keeps fighting.} 26. Rc4 Qb5) 26. Rc4 {[%emt 0:01:34]} Qd6 {[%emt 0:02:29] [#]} (26... Qb5 $142 27. Rc7+ Bd7 28. Qxb5 axb5 29. Rxd7+ Kg8) 27. Rxc8 $2 {[%emt 0:02:46]} Rxc8 {[%emt 0:00:33]} 28. Qb7+ {[%emt 0:00:05]} Ne7 {[%emt 0:00:09]} 29. Nxe7 {[%emt 0:00:34] White wants to mate with Nf5+.} Qf4+ {[%emt 0:01:55]} (29... Rxc2+ 30. Kxc2 Qc5+ 31. Kb1 Rxe7 32. Qxa6 Ra7) 30. Kb1 {[%emt 0:00:06] White threatens Nf5+ and mate.} Rc7 {[%emt 0:00:04]} 31. Nf5+ {[%emt 0:00:08]} Kf8 {[%emt 0:01:03]} 32. Rd8+ {[%emt 0:01:29]} Re8 {[%emt 0:00:06]} 33. Qb4+ {[%emt 0:01:15]} Kf7 {[%emt 0:00:20]} 34. Nd6+ {[%emt 0:00:05] Weighted Error Value: White=0.26 (precise) /Black=0.75.  Mistake:       	White=3     	Black=6      Inaccurate:     	White=1     	Black=3      OK:         	White=7     	Black=6      Best:        	White=6     	Black=2      Strong:       	White=1     	---} 1-0

[Event "Azerbaijan Men Championship 2024"]
[Site "Baku"]
[Date "2024.04.17"]
[Round "7.6"]
[White "Talibov, Shiroghlan"]
[Black "Gadimbayli, Abdulla"]
[Result "0-1"]
[ECO "B45"]
[WhiteElo "2373"]
[BlackElo "2489"]
[Annotator "TA"]
[PlyCount "76"]
[EventDate "2024.04.11"]
[EventType "swiss"]
[EventCountry "AZE"]
[SourceTitle "playchess.com"]
[Source "ChessBase"]
[SourceQuality "1"]
[TimeControl "40/5400+30:1800+30"]

{[%evp 16,76,33,4,72,13,22,31,24,13,19,16,25,-31,35,0,0,-39,-43,-45,-50,-49,-32,-39,-43,-133,-122,-178,-159,-230,-236,-268,-281,-281,-281,-274,-275,-274,-263,-293,-246,-297,-306,-382,-381,-347,-309,-431,-407,-544,-518,-567,-565,-566,-568,-684,-691,-715,-666,-908,-897,-804,-778]} 1. e4 {[%emt 0:04:33]} c5 {[%emt 0:00:56]} 2. Nf3 {[%emt 0:00:18]} e6 {[%emt 0:00:15]} 3. d4 {[%emt 0:00:05]} cxd4 {[%emt 0:00:05]} 4. Nxd4 {[%emt 0:00:02]} Nf6 {[%emt 0:00:09]} 5. Nc3 {[%emt 0:00:04]} Nc6 {[%emt 0:00:25]} 6. Nxc6 {[%emt 0:00:10]} bxc6 {[%emt 0:00:05]} 7. e5 {[%emt 0:00:01]} Nd5 {[%emt 0:00:08]} 8. Ne4 {[%emt 0:00:05]} Qc7 {[%emt 0:00:18]} 9. f4 $1 {[%emt 0:00:05]} Rb8 {[%emt 0:00:04] [#]} (9... Qb6 $11 {remains equal.}) 10. a3 {[%emt 0:05:51]} ({White should try} 10. c4 $1 $16) 10... Qa5+ {[%emt 0:01:48]} (10... Qb6 $5) 11. c3 {[%emt 0:03:43]} Qb6 {[%emt 0:00:19] White is slightly better.} 12. Bd3 {[%emt 0:08:08]} Ba6 {[%emt 0:03:26]} 13. Bxa6 {[%emt 0:04:21]} Qxa6 {[%emt 0:00:34]} 14. Qe2 {[%emt 0:00:04]} (14. b3 $11) 14... Qxe2+ $15 {[%emt 0:21:11]} 15. Kxe2 {[%emt 0:00:01]} f5 {[%emt 0:00:18]} 16. Ng5 {[%emt 0:22:38]} a5 {[%emt 0:05:03]} 17. c4 {[%emt 0:06:01]} Nb6 {[%emt 0:09:24]} 18. Kd3 {[%emt 0:00:10]} Na4 {[%emt 0:08:58]} 19. Kc2 {[%emt 0:08:01][%cal Ob2b4]} Nc5 $36 {[%emt 0:04:33][%mdl 2048] White is under pressure.} 20. b4 {[%emt 0:11:32] Black continues to play with concentration.} h6 $17 {[%emt 0:03:31]} 21. bxc5 {[%emt 0:16:31]} (21. Nf7 $17 {was called for.} Kxf7 22. bxc5) 21... hxg5 $19 {[%emt 0:00:16]} 22. fxg5 {[%emt 0:00:01]} (22. Bd2 $17) 22... Rh4 $1 {[%emt 0:02:03]} 23. Bd2 {[%emt 0:03:29]} Rxc4+ {[%emt 0:03:12]} 24. Kd3 {[%emt 0:00:00]} Rxc5 {[%emt 0:00:57]} 25. Rhb1 {[%emt 0:00:06] Repels Rb3+} Rxb1 {[%emt 0:05:24]} (25... Rd5+ $2 26. Kc2 Rxb1 27. Rxb1 Bxa3 (27... Rxe5 $2 28. Rb8+ Ke7 29. g6 $19) 28. h4 $19) 26. Rxb1 {[%emt 0:00:01][%mdl 4096] Endgame. KRB-KRB} Kf7 {[%emt 0:00:07]} (26... Rxe5 27. Rb8+ Ke7 28. g6 $16) 27. a4 {[%emt 0:02:49]} Rxe5 {[%emt 0:01:52]} 28. Rb7 {[%emt 0:00:03]} Rd5+ {[%emt 0:00:35]} 29. Kc2 {[%emt 0:00:01]} e5 {[%emt 0:10:25]} 30. h4 {[%emt 0:00:29]} Kg6 {[%emt 0:02:00]} 31. Ra7 {[%emt 0:00:09]} Bc5 {[%emt 0:01:51]} 32. Ra6 {[%emt 0:00:06]} Rd4 {[%emt 0:00:51][%csl LRa4,LRh4] Black is clearly winning.} 33. Bc3 {[%emt 0:00:01]} Rxa4 {[%emt 0:00:35]} 34. Bxe5 {[%emt 0:00:01]} Rxh4 {[%emt 0:00:36]} 35. Rxa5 {[%emt 0:00:07]} d6 {[%emt 0:00:15][%cal Oh4g4]} 36. Bc3 {[%emt 0:00:04]} Rg4 {[%emt 0:00:39]} 37. Ra6 {[%emt 0:00:07]} Rxg2+ {[%emt 0:00:19]} 38. Kd3 {[%emt 0:00:02]} Rg3+ {[%emt 0:16:03] Weighted Error Value: White=0.43/Black=0.10 (very precise) .  Mistake:       	White=5     	---        Inaccurate:     	White=4     	---        OK:         	White=9     	Black=17     Best:        	---       	Black=2      Strong:       	---       	Black=1} 0-1

[Event "Azerbaijan Men Championship 2024"]
[Site "Baku"]
[Date "2024.04.17"]
[Round "7.7"]
[White "Suleymanli, Suleyman"]
[Black "Ibrahimli, Murad"]
[Result "1/2-1/2"]
[ECO "D02"]
[WhiteElo "2246"]
[BlackElo "2396"]
[Annotator "TA"]
[PlyCount "113"]
[EventDate "2024.04.11"]
[EventType "swiss"]
[EventCountry "AZE"]
[SourceTitle "playchess.com"]
[Source "ChessBase"]
[SourceQuality "1"]
[TimeControl "40/5400+30:1800+30"]

{[%evp 11,113,22,14,15,54,10,15,2,24,20,25,0,0,-22,-8,-33,-24,-39,-48,-39,-34,-68,-56,-70,-58,-61,-25,-55,-45,-53,-42,-33,0,-33,-22,-56,-34,-35,-31,-31,-31,-31,-25,-25,-25,-35,-32,-31,-25,-72,-41,-59,-51,-78,-68,-66,-59,-91,-91,-120,-97,-121,-45,-44,-35,-35,0,0,0,0,0,0,0,0,0,0,0,0,0,0,0,0,0,0,0,0,0,0,0,0,0,0,0,0,0,0,0,0,0,0,0,0,0,0]} 1. Nf3 {[%emt 0:00:02]} d5 {[%emt 0:01:09]} 2. g3 {[%emt 0:00:03]} Bf5 {[%emt 0:00:26]} 3. Bg2 {[%emt 0:00:11]} Nc6 {[%emt 0:00:34]} 4. d4 {[%emt 0:00:16]} Nb4 {[%emt 0:03:19]} 5. Na3 {[%emt 0:00:07]} e6 {[%emt 0:00:14]} 6. O-O {[%emt 0:00:06]} Nf6 {[%emt 0:01:02]} 7. Bf4 {[%emt 0:03:42]} c6 {[%emt 0:08:22]} 8. Ne5 {[%emt 0:11:12]} Be7 {[%emt 0:03:00]} 9. c3 {[%emt 0:03:27]} Na6 {[%emt 0:00:15]} 10. f3 {[%emt 0:08:33]} h6 {[%emt 0:06:23]} 11. Qb3 {[%emt 0:03:51]} Qb6 {[%emt 0:00:49]} 12. g4 {[%emt 0:04:14]} Bh7 {[%emt 0:00:06]} 13. h4 {[%emt 0:05:47]} Nb8 {[%emt 0:01:17]} 14. Nb1 {[%emt 0:04:53]} Nfd7 {[%emt 0:02:28]} 15. h5 {[%emt 0:04:29]} Bf6 {[%emt 0:14:57]} 16. Nd3 {[%emt 0:20:33]} Bxd3 {[%emt 0:06:40]} 17. Qxb6 {[%emt 0:01:06]} axb6 {[%emt 0:00:07]} 18. exd3 {[%emt 0:00:02]} b5 {[%emt 0:01:33]} 19. Nd2 {[%emt 0:06:32] [#]} b4 $1 {[%emt 0:04:32]} 20. Bd6 {[%emt 0:01:40]} (20. a4 c5) 20... bxc3 {[%emt 0:07:15]} 21. bxc3 {[%emt 0:00:04]} Bg5 {[%emt 0:08:10]} 22. Nb3 {[%emt 0:03:04]} Be7 {[%emt 0:01:34]} 23. Bg3 {[%emt 0:00:10]} Ba3 {[%emt 0:02:55]} 24. Rab1 {[%emt 0:04:03] Repels Bb2} b5 {[%emt 0:05:30]} 25. Rf2 {[%emt 0:03:15]} O-O {[%emt 0:01:08]} 26. Rc2 {[%emt 0:01:52]} Ra4 {[%emt 0:00:33]} 27. Bf1 {[%emt 0:02:38]} Na6 {[%emt 0:02:14]} 28. Re1 {[%emt 0:04:29]} Ra8 {[%emt 0:01:51]} 29. Be2 {[%emt 0:00:50]} Be7 {[%emt 0:00:46]} 30. Bd1 {[%emt 0:00:01]} (30. Rb1 $11) 30... Ra7 {[%emt 0:01:17]} 31. Rg2 {[%emt 0:01:54]} Ra3 {[%emt 0:04:22]} 32. Ree2 {[%emt 0:00:40]} c5 {[%emt 0:04:18]} 33. dxc5 {[%emt 0:02:32]} Naxc5 {[%emt 0:00:06]} 34. Nd4 {[%emt 0:00:37] [#] Threatens to win with Nc6.} Rb7 $1 {[%emt 0:00:01][%cal Oe7f6]} ({Reject} 34... Rxc3 $6 35. Nxb5 (35. Nc6 Rc1 $11) 35... Rxd3 36. Nxa7 $11) 35. Nc6 {[%emt 0:00:27]} Bf8 {[%emt 0:03:03]} 36. d4 {[%emt 0:00:01]} Na4 {[%emt 0:00:09]} (36... Rb6 $1 $17 37. Ne5 Nxe5 38. Rxe5 Nd3) 37. Bxa4 $15 {[%emt 0:00:15]} Rxa4 {[%emt 0:00:28]} 38. Rb2 {[%emt 0:00:23]} Ra6 {[%emt 0:02:24]} 39. Ne5 {[%emt 0:01:22] The position is equal.} Nxe5 {[%emt 0:02:48]} 40. Bxe5 {[%emt 0:00:00]} Ra3 {[%emt 0:00:00]} 41. Rgc2 {[%emt 0:03:23]} Rb6 {[%emt 0:06:50]} 42. Kg2 {[%emt 0:01:34]} f6 {[%emt 0:02:08]} 43. Bg3 {[%emt 0:05:00]} Kf7 {[%emt 0:00:07]} 44. Kf2 {[%emt 0:04:27]} Ke8 {[%emt 0:02:33]} 45. Ke2 {[%emt 0:01:21]} Kd7 {[%emt 0:00:07]} 46. Rb3 {[%emt 0:05:56]} Kc6 {[%emt 0:03:13]} 47. Rxa3 {[%emt 0:01:38]} Bxa3 $11 {[%emt 0:00:03][%mdl 4096] Endgame. KRB-KRB} 48. Kd3 {[%emt 0:00:24]} Ra6 {[%emt 0:00:11]} 49. Re2 {[%emt 0:00:28]} Kd7 {[%emt 0:00:03]} 50. Re1 {[%emt 0:02:58]} Be7 {[%emt 0:02:29]} 51. Rb1 {[%emt 0:00:37]} Ra5 {[%emt 0:01:54]} 52. Rb2 {[%emt 0:01:26]} Bf8 {[%emt 0:04:00]} 53. Bf4 {[%emt 0:00:36]} Ba3 {[%emt 0:00:27]} 54. Rb1 {[%emt 0:00:32]} Be7 {[%emt 0:00:37]} 55. Rb2 {[%emt 0:00:00]} Bd8 {[%emt 0:02:54]} 56. Bg3 {[%emt 0:00:16]} Bb6 {[%emt 0:04:20]} 57. Bf4 {[%emt 0:00:30] Weighted Error Value: White=0.10 (very precise) /Black=0.07 (flawless) .  Mistake:       	White=1     	Black=1      Inaccurate:     	White=8     	Black=5      OK:         	White=19    	Black=25     Best:        	White=1     	---        Strong:       	---       	Black=1} 1/2-1/2

[Event "Azerbaijan Men Championship 2024"]
[Site "Baku"]
[Date "2024.04.17"]
[Round "7.8"]
[White "Ahmad, Khagan"]
[Black "Hamidov, Allahverdi"]
[Result "0-1"]
[ECO "E05"]
[WhiteElo "2321"]
[BlackElo "2091"]
[Annotator "TA"]
[PlyCount "68"]
[EventDate "2024.04.11"]
[EventType "swiss"]
[EventCountry "AZE"]
[SourceTitle "playchess.com"]
[Source "ChessBase"]
[SourceQuality "1"]
[TimeControl "40/5400+30:1800+30"]

{[%evp 15,68,20,25,2,14,17,29,29,12,2,4,5,8,17,0,-46,-45,-50,-59,-50,-56,-59,-56,-91,-90,-105,-80,-127,-130,-144,-64,-109,39,39,39,39,46,45,41,44,43,45,45,0,0,-48,0,0,0,-447,-426,-803,-177,-804,-787]} 1. Nf3 {[%emt 0:00:05]} Nf6 {[%emt 0:00:20]} 2. c4 {[%emt 0:00:06]} e6 {[%emt 0:00:07]} 3. g3 {[%emt 0:00:04]} d5 {[%emt 0:00:06]} 4. d4 {[%emt 0:00:05]} Be7 {[%emt 0:00:09]} 5. Bg2 {[%emt 0:00:04]} O-O {[%emt 0:00:05]} 6. O-O {[%emt 0:00:03]} dxc4 {[%emt 0:00:19]} 7. Qc2 {[%emt 0:00:05]} a6 {[%emt 0:00:45]} 8. a4 {[%emt 0:00:06]} Bd7 {[%emt 0:00:16]} 9. Rd1 {[%emt 0:00:27][%cal Of3e5]} Bc6 {[%emt 0:00:15]} 10. Bg5 {[%emt 0:00:05]} b5 {[%emt 0:00:33]} 11. Bxf6 {[%emt 0:00:37] White has an edge.} Bxf6 {[%emt 0:00:11]} 12. Nc3 {[%emt 0:00:04]} Qe8 {[%emt 0:01:28]} 13. d5 {[%emt 0:00:15]} exd5 {[%emt 0:00:14]} 14. Nd4 $1 {[%emt 0:00:04]} Qe5 {[%emt 0:00:28]} 15. axb5 {[%emt 0:12:12]} (15. e4 $11) 15... axb5 $15 {[%emt 0:02:17] White must now prevent ...Rxa1.} 16. Nxc6 {[%emt 0:00:23]} Nxc6 {[%emt 0:00:12]} 17. Rxa8 {[%emt 0:00:05]} Rxa8 {[%emt 0:00:10]} 18. Nxd5 {[%emt 0:08:37]} Rb8 {[%emt 0:12:10]} (18... Qxb2 $2 19. Qxb2 Bxb2 20. Ne3 $18 (20. Nxc7 c3 $17)) 19. e3 {[%emt 0:10:44]} Qxb2 {[%emt 0:34:47]} 20. Qe4 {[%emt 0:10:11][%cal Od1b1]} Na5 {[%emt 0:10:15]} 21. Qf4 {[%emt 0:35:38] [#]} (21. Ne7+ $142 Kh8 22. Nc6 Nxc6 23. Qxc6) 21... Be5 $1 $17 {[%emt 0:20:19]} 22. Qh4 {[%emt 0:01:36] Threatening mate with Ne7+.} g6 {[%emt 0:04:04]} (22... Bd6 $17 {...c3 is the strong threat.} 23. Ne7+ Kh8) 23. f4 {[%emt 0:02:37]} Bg7 {[%emt 0:01:21]} (23... Bd6 $17 {Threatens to win with ...Kg7.} 24. e4 h5) 24. Ne7+ $1 $14 {[%emt 0:00:13]} Kh8 {[%emt 0:03:08] [#] ...Bf6 would now be deadly.} 25. Rd8+ $1 {[%emt 0:00:29]} Bf8 $1 {[%emt 0:00:11]} 26. Rxb8 {[%emt 0:00:10]} Qc1+ {[%emt 0:00:04]} 27. Bf1 {[%emt 0:00:12][%cal Rh4f6]} Qxe3+ {[%emt 0:00:05]} 28. Kg2 {[%emt 0:00:04][%cal Rh4f6]} Qe4+ $1 {[%emt 0:00:29]} 29. Kf2 {[%emt 0:00:12]} Kg7 $36 {[%emt 0:00:28][%mdl 2048] Repels Qf6+. Black has some pressure. Some like it hot} 30. Re8 {[%emt 0:04:19]} (30. Rxb5 $2 Bxe7 31. Qg4 Bc5+ (31... Nb3 32. Qe2 $17) 32. Rxc5 Qd4+ 33. Ke1 Qxc5 $19) (30. Bg2 $11 {is more appropriate.} Qc2+ (30... Qd4+ 31. Ke2 $11) 31. Kg1 Qc1+ 32. Kf2 Qc2+ 33. Kf1) 30... Nc6 {[%emt 0:01:48]} (30... Qd4+ $1 $15 {should be considered.} 31. Kf3 (31. Kg2 $2 Qd7 $19) 31... Qc3+ (31... b4 32. Nf5+ Kg8 33. Rxf8+ Kxf8 34. Qe7+ Kg8 35. Qe8#) 32. Kf2 Qd2+ 33. Kf3 Qc3+ (33... Qd7 34. Rxf8 Kxf8 35. Qf6 $15) 34. Kg4 Qd2) 31. Rxf8 $1 $11 {[%emt 0:00:06]} Nxe7 {[%emt 0:03:02]} 32. Rd8 {[%emt 0:02:46][%mdl 8192] Against Qd4+} (32. Re8 $11 {and White has nothing to worry.} Qd4+ 33. Kg2 Qd5+ 34. Kh3 (34. Kg1 $2 Qc5+ 35. Kh1 Qc6+ 36. Bg2 Qxe8 $19) 34... Qd7+ 35. f5) 32... Nf5 $19 {[%emt 0:00:59]} 33. Qg4 {[%emt 0:00:09] [#]} (33. Qh3 $142 c3 34. Bd3 (34. Bxb5 $2 {loses.} Qe3+ 35. Kg2 c2 $19)) 33... Qe3+ $1 {[%emt 0:00:59]} 34. Kg2 {[%emt 0:00:01]} Qe7 {[%emt 0:00:12] Weighted Error Value: White=0.58/Black=0.14 (very precise) .  Loses game:     	White=1     	---        Mistake:       	White=4     	Black=3      Inaccurate:     	White=4     	---        OK:         	White=5     	Black=10     Best:        	White=5     	Black=4      Strong:       	White=3     	Black=4} 0-1

[Event "Azerbaijan Men Championship 2024"]
[Site "Baku"]
[Date "2024.04.17"]
[Round "7.9"]
[White "Sevdimaliyev, Urfan"]
[Black "Rustamov, Rustam"]
[Result "1/2-1/2"]
[ECO "D02"]
[WhiteElo "2320"]
[BlackElo "2261"]
[Annotator "TA"]
[PlyCount "49"]
[EventDate "2024.04.11"]
[EventType "swiss"]
[EventCountry "AZE"]
[SourceTitle "playchess.com"]
[Source "ChessBase"]
[SourceQuality "1"]
[TimeControl "40/5400+30:1800+30"]

{[%evp 14,49,14,19,35,33,21,15,37,31,35,14,8,4,35,35,46,52,62,5,0,6,17,0,0,0,0,0,0,0,0,0,0,0,0,0,0,0]} 1. d4 {[%emt 0:02:06]} Nf6 {[%emt 0:00:53]} 2. Nf3 {[%emt 0:01:45]} e6 {[%emt 0:00:33]} 3. Bf4 {[%emt 0:00:40]} d5 {[%emt 0:02:36]} 4. e3 {[%emt 0:00:23]} c5 {[%emt 0:02:12]} 5. c3 {[%emt 0:00:17]} Nc6 {[%emt 0:03:58]} 6. Nbd2 {[%emt 0:00:26]} Bd6 {[%emt 0:01:06]} 7. Bg3 {[%emt 0:00:52]} Qe7 {[%emt 0:04:20]} 8. Ne5 {[%emt 0:01:44]} Nd7 {[%emt 0:03:34]} 9. Nxc6 {[%emt 0:03:34]} bxc6 {[%emt 0:00:09]} 10. Qa4 {[%emt 0:00:14]} Bxg3 {[%emt 0:06:02]} 11. hxg3 {[%emt 0:01:47]} Qd6 {[%emt 0:00:51]} 12. Nb3 {[%emt 0:06:19]} c4 {[%emt 0:03:12]} 13. Na5 {[%emt 0:04:51][%cal Ob2b3]} c5 {[%emt 0:01:57]} 14. b3 {[%emt 0:07:09]} cxb3 {[%emt 0:01:26]} 15. axb3 {[%emt 0:00:48]} cxd4 {[%emt 0:06:09]} 16. cxd4 {[%emt 0:09:51]} (16. exd4 $14 O-O 17. Qa3) 16... O-O $11 {[%emt 0:04:53] The position is equal.} 17. Bd3 {[%emt 0:03:06][%cal Oa5c4] [#] Hoping for Nc4!} Nf6 {[%emt 0:02:55]} 18. Qc6 {[%emt 0:17:30]} Qb4+ {[%emt 0:08:07]} 19. Ke2 {[%emt 0:00:12]} Bd7 {[%emt 0:05:04]} 20. Qxd7 {[%emt 0:20:12]} Nxd7 {[%emt 0:00:37]} 21. Bxh7+ {[%emt 0:00:05]} Kh8 {[%emt 0:00:03]} 22. Bg6+ {[%emt 0:00:06]} Kg8 {[%emt 0:00:08]} 23. Bh7+ {[%emt 0:00:13]} Kh8 {[%emt 0:00:06]} 24. Bg6+ {[%emt 0:00:02]} Kg8 {[%emt 0:00:11]} 25. Bh7+ {[%emt 0:00:03] Weighted Error Value: White=0.08 (flawless) /Black=0.07 (flawless) .  Mistake:       	White=1     	---        Inaccurate:     	---       	Black=1      OK:         	White=9     	Black=5      Best:        	---       	Black=2} 1/2-1/2